[Event "*** Titled Tuesday Blitz"]
[Site "Chess.com"]
[Date "2020.04.07"]
[Round "6"]
[White "zacachess"]
[Black "keepitcoming"]
[Result "0-1"]
[WhiteElo "2288"]
[BlackElo "2517"]
[TimeControl "180+1"]
[EndTime "14:07:25 PDT"]
[Termination "keepitcoming won by resignation"]

1. e4 {[%clk 0:03:00.9]} 1... c6 {[%clk 0:02:59.8]} 2. d4 {[%clk 0:03:00.6]}
2... d5 {[%clk 0:03:00.7]} 3. Nc3 {[%clk 0:03:00.9]} 3... dxe4 {[%clk 0:03:01]}
4. Nxe4 {[%clk 0:03:01.8]} 4... Nf6 {[%clk 0:03:01.2]} 5. Ng3 {[%clk 0:02:59.5]}
5... h5 {[%clk 0:03:01.1]} 6. Bc4 {[%clk 0:02:59.8]} 6... h4 {[%clk 0:03:02]} 7.
N3e2 {[%clk 0:03:00.3]} 7... Bf5 {[%clk 0:02:57.5]} 8. h3 {[%clk 0:02:59.5]}
8... e6 {[%clk 0:02:55.5]} 9. Nf3 {[%clk 0:02:59.8]} 9... Be4 {[%clk 0:02:36.7]}
10. Nf4 {[%clk 0:02:45.7]} 10... Bxf3 {[%clk 0:02:33.7]} 11. Qxf3 {[%clk
0:02:37.2]} 11... Qxd4 {[%clk 0:02:31.8]} 12. Bd3 {[%clk 0:02:29.6]} 12... Bb4+
{[%clk 0:02:27.3]} 13. Kf1 {[%clk 0:02:15.8]} 13... Bd6 {[%clk 0:02:27.4]} 14.
c3 {[%clk 0:02:12]} 14... Qb6 {[%clk 0:02:27]} 15. Bc4 {[%clk 0:02:04.5]} 15...
Nbd7 {[%clk 0:02:25.2]} 16. Bxe6 {[%clk 0:01:55.7]} 16... Ne5 {[%clk 0:01:59.2]}
17. Qd1 {[%clk 0:01:38.7]} 17... Rd8 {[%clk 0:01:57.5]} 18. Bb3 {[%clk
0:01:30.2]} 18... Kf8 {[%clk 0:01:55.4]} 19. Be3 {[%clk 0:01:27.6]} 19... Qa6+
{[%clk 0:01:49.7]} 20. Kg1 {[%clk 0:01:23.8]} 20... Nc4 {[%clk 0:01:47.3]} 21.
Qf3 {[%clk 0:01:06]} 21... Nxb2 {[%clk 0:01:39.8]} 22. Bd4 {[%clk 0:00:56.5]}
22... Rh6 {[%clk 0:01:39.9]} 23. Re1 {[%clk 0:00:49]} 23... c5 {[%clk
0:01:34.9]} 24. Bxf6 {[%clk 0:00:46.3]} 24... Rxf6 {[%clk 0:01:33.3]} 25. Qh5
{[%clk 0:00:46.2]} 25... Kg8 {[%clk 0:01:24]} 26. Bxf7+ {[%clk 0:00:42.4]} 26...
Rxf7 {[%clk 0:01:01.2]} 27. Ng6 {[%clk 0:00:42.3]} 27... Rfd7 {[%clk 0:00:56.1]}
28. Qh8+ {[%clk 0:00:36.1]} 28... Kf7 {[%clk 0:00:54]} 29. Qh5 {[%clk
0:00:36.4]} 29... Bh2+ {[%clk 0:00:47.9]} 30. Kxh2 {[%clk 0:00:33.9]} 30... Qxg6
{[%clk 0:00:48.5]} 31. Qxh4 {[%clk 0:00:28.8]} 31... Nd3 {[%clk 0:00:48.3]} 32.
Re3 {[%clk 0:00:27.4]} 32... Qd6+ {[%clk 0:00:39.6]} 33. g3 {[%clk 0:00:25.9]}
33... Qf6 {[%clk 0:00:37.7]} 34. Qc4+ {[%clk 0:00:25]} 34... Rd5 {[%clk
0:00:34.7]} 35. f4 {[%clk 0:00:22.7]} 35... Nb2 {[%clk 0:00:29.2]} 36. Qe4
{[%clk 0:00:19]} 36... Rd2+ {[%clk 0:00:25.7]} 37. Re2 {[%clk 0:00:19.4]} 37...
Rxe2+ {[%clk 0:00:23.3]} 38. Qxe2 {[%clk 0:00:20.3]} 38... Qxc3 {[%clk
0:00:23.8]} 39. Re1 {[%clk 0:00:20.8]} 39... Rd2 {[%clk 0:00:23.8]} 0-1

[Event "*** Titled Tuesday Blitz"]
[Site "Chess.com"]
[Date "2020.04.07"]
[Round "6"]
[White "wild_cat99"]
[Black "Fins0905"]
[Result "0-1"]
[WhiteElo "2530"]
[BlackElo "2738"]
[TimeControl "180+1"]
[EndTime "14:07:26 PDT"]
[Termination "Fins0905 won by resignation"]

1. Nf3 {[%clk 0:03:00.9]} 1... d5 {[%clk 0:02:59.1]} 2. e3 {[%clk 0:03:00.6]}
2... c5 {[%clk 0:02:57]} 3. c4 {[%clk 0:03:01.5]} 3... e6 {[%clk 0:02:49.5]} 4.
Nc3 {[%clk 0:03:00.7]} 4... Nf6 {[%clk 0:02:48.5]} 5. b3 {[%clk 0:02:58.9]} 5...
d4 {[%clk 0:02:46.9]} 6. exd4 {[%clk 0:02:50.2]} 6... cxd4 {[%clk 0:02:47.8]} 7.
Na4 {[%clk 0:02:50.9]} 7... Nc6 {[%clk 0:02:44.8]} 8. Bb2 {[%clk 0:02:50]} 8...
e5 {[%clk 0:02:44.6]} 9. d3 {[%clk 0:02:49.5]} 9... Bb4+ {[%clk 0:02:10.1]} 10.
Nd2 {[%clk 0:02:48.5]} 10... a5 {[%clk 0:02:06.5]} 11. a3 {[%clk 0:02:42.4]}
11... Bd6 {[%clk 0:02:02]} 12. Be2 {[%clk 0:02:41.5]} 12... O-O {[%clk
0:02:00.5]} 13. O-O {[%clk 0:02:41.6]} 13... Bf5 {[%clk 0:02:00.1]} 14. c5
{[%clk 0:02:33.3]} 14... Bc7 {[%clk 0:01:59.3]} 15. Nc4 {[%clk 0:02:33.4]} 15...
Nd5 {[%clk 0:01:58.6]} 16. Bf3 {[%clk 0:02:13.7]} 16... Nf4 {[%clk 0:01:55]} 17.
Be4 {[%clk 0:02:13.5]} 17... Bxe4 {[%clk 0:01:50.9]} 18. dxe4 {[%clk 0:02:14.4]}
18... Qg5 {[%clk 0:01:41.2]} 19. Qf3 {[%clk 0:02:06.8]} 19... Ne6 {[%clk
0:01:34.6]} 20. Bc1 {[%clk 0:01:53]} 20... Qe7 {[%clk 0:01:29.6]} 21. Nab6
{[%clk 0:01:35.7]} 21... Ra7 {[%clk 0:01:12.3]} 22. Nd5 {[%clk 0:01:35]} 22...
Qxc5 {[%clk 0:01:08.9]} 23. Qg4 {[%clk 0:01:06]} 23... Kh8 {[%clk 0:00:57.2]}
24. Qf5 {[%clk 0:00:50.8]} 24... b5 {[%clk 0:00:46.3]} 25. Nf6 {[%clk
0:00:41.1]} 25... gxf6 {[%clk 0:00:32.1]} 26. Qxf6+ {[%clk 0:00:42]} 26... Ng7
{[%clk 0:00:31.9]} 27. Bh6 {[%clk 0:00:42]} 27... Rg8 {[%clk 0:00:32]} 28. Rac1
{[%clk 0:00:31]} 28... bxc4 {[%clk 0:00:25.5]} 29. Rxc4 {[%clk 0:00:31.9]} 29...
Qd6 {[%clk 0:00:25.8]} 30. Rxc6 {[%clk 0:00:30.4]} 30... Qxf6 {[%clk 0:00:24]}
31. Rxf6 {[%clk 0:00:31.3]} 31... Bd8 {[%clk 0:00:20.7]} 32. Rd6 {[%clk
0:00:27.3]} 32... Ne6 {[%clk 0:00:19.7]} 33. Rd5 {[%clk 0:00:27]} 33... Bg5
{[%clk 0:00:18.7]} 34. Bxg5 {[%clk 0:00:24.5]} 34... Rxg5 {[%clk 0:00:19.6]} 35.
f3 {[%clk 0:00:24.5]} 35... Nf4 {[%clk 0:00:17.9]} 36. Rd8+ {[%clk 0:00:19.4]}
36... Rg8 {[%clk 0:00:17.2]} 37. g3 {[%clk 0:00:20.3]} 37... Rxd8 {[%clk
0:00:16.9]} 0-1

[Event "*** Titled Tuesday Blitz"]
[Site "Chess.com"]
[Date "2020.04.07"]
[Round "6"]
[White "GadimbayliA"]
[Black "maciek_92"]
[Result "1-0"]
[WhiteElo "2925"]
[BlackElo "2722"]
[TimeControl "180+1"]
[EndTime "14:07:28 PDT"]
[Termination "GadimbayliA won on time"]

1. e4 {[%clk 0:03:00.9]} 1... c5 {[%clk 0:02:59.2]} 2. Nf3 {[%clk 0:03:01]} 2...
e6 {[%clk 0:02:59.2]} 3. d4 {[%clk 0:03:00.6]} 3... cxd4 {[%clk 0:03:00.1]} 4.
Nxd4 {[%clk 0:03:01.5]} 4... Nc6 {[%clk 0:03:00.6]} 5. Nc3 {[%clk 0:03:01]} 5...
a6 {[%clk 0:03:01.2]} 6. Nxc6 {[%clk 0:03:00.2]} 6... bxc6 {[%clk 0:03:01.2]} 7.
Be3 {[%clk 0:02:57.5]} 7... Nf6 {[%clk 0:02:56.1]} 8. g3 {[%clk 0:02:57.9]} 8...
Rb8 {[%clk 0:02:45.7]} 9. Bg2 {[%clk 0:02:55.2]} 9... d5 {[%clk 0:02:41.2]} 10.
O-O {[%clk 0:02:50.6]} 10... Rxb2 {[%clk 0:02:29.7]} 11. Na4 {[%clk 0:02:50.2]}
11... Rb4 {[%clk 0:01:36.3]} 12. c3 {[%clk 0:02:49.4]} 12... Rb5 {[%clk
0:00:49.3]} 13. exd5 {[%clk 0:02:33]} 13... cxd5 {[%clk 0:00:50.2]} 14. c4
{[%clk 0:02:33.5]} 14... dxc4 {[%clk 0:00:50.3]} 15. Bc6+ {[%clk 0:02:11.4]}
15... Bd7 {[%clk 0:00:50.4]} 16. Bxb5 {[%clk 0:02:12]} 16... axb5 {[%clk
0:00:50.8]} 17. Nb6 {[%clk 0:02:12.6]} 17... Ba3 {[%clk 0:00:33.1]} 18. Qf3
{[%clk 0:02:05.4]} 18... O-O {[%clk 0:00:30.1]} 19. Rfd1 {[%clk 0:02:04.6]}
19... Qe7 {[%clk 0:00:17.6]} 20. Nxd7 {[%clk 0:02:01.3]} 20... Nxd7 {[%clk
0:00:18.5]} 21. Qc6 {[%clk 0:02:01.8]} 21... Ne5 {[%clk 0:00:16.7]} 22. Qxb5
{[%clk 0:02:00.9]} 22... Nd3 {[%clk 0:00:12.1]} 23. Qxc4 {[%clk 0:01:50.2]}
23... Nb2 {[%clk 0:00:11.7]} 24. Qc6 {[%clk 0:01:50.7]} 24... Nxd1 {[%clk
0:00:12.2]} 25. Rxd1 {[%clk 0:01:51.6]} 25... g6 {[%clk 0:00:12.1]} 26. Rd7
{[%clk 0:01:46.2]} 26... Qb4 {[%clk 0:00:10.6]} 27. Kg2 {[%clk 0:01:45.1]} 27...
Kg7 {[%clk 0:00:06.1]} 28. Bd4+ {[%clk 0:01:43.7]} 28... Kg8 {[%clk 0:00:06.7]}
29. Bf6 {[%clk 0:01:37.4]} 29... Bb2 {[%clk 0:00:06.3]} 30. Rb7 {[%clk
0:01:34.3]} 30... Qxb7 {[%clk 0:00:04.9]} 31. Qxb7 {[%clk 0:01:35.2]} 31... Bxf6
{[%clk 0:00:05.4]} 32. a4 {[%clk 0:01:35.8]} 32... Rd8 {[%clk 0:00:05.6]} 33. a5
{[%clk 0:01:33.4]} 33... Rd2 {[%clk 0:00:06]} 34. a6 {[%clk 0:01:15.3]} 34...
Bd4 {[%clk 0:00:06.1]} 35. Qb8+ {[%clk 0:01:15.5]} 35... Kg7 {[%clk 0:00:06]}
36. Qf4 {[%clk 0:01:13.8]} 36... Rd1 {[%clk 0:00:04.3]} 37. h4 {[%clk
0:01:03.6]} 37... e5 {[%clk 0:00:04.9]} 38. Qf3 {[%clk 0:01:03.2]} 38... Rd2
{[%clk 0:00:04.5]} 39. h5 {[%clk 0:00:51.7]} 39... gxh5 {[%clk 0:00:05.4]} 40.
Qa3 {[%clk 0:00:48.6]} 40... Rxf2+ {[%clk 0:00:05]} 41. Kh3 {[%clk 0:00:48.1]}
41... e4 {[%clk 0:00:02.6]} 42. Qb4 {[%clk 0:00:45.1]} 1-0

[Event "*** Titled Tuesday Blitz"]
[Site "Chess.com"]
[Date "2020.04.07"]
[Round "6"]
[White "TregubovP"]
[Black "fugadelafuga"]
[Result "1-0"]
[WhiteElo "2477"]
[BlackElo "2311"]
[TimeControl "180+1"]
[EndTime "14:07:28 PDT"]
[Termination "TregubovP won on time"]

1. e4 {[%clk 0:03:00.9]} 1... c5 {[%clk 0:02:58.6]} 2. Nf3 {[%clk 0:03:00.1]}
2... Nc6 {[%clk 0:02:59.1]} 3. c3 {[%clk 0:03:00.1]} 3... Nf6 {[%clk 0:02:58.8]}
4. e5 {[%clk 0:03:00.5]} 4... Nd5 {[%clk 0:02:59.1]} 5. d4 {[%clk 0:03:01.1]}
5... cxd4 {[%clk 0:02:59.5]} 6. cxd4 {[%clk 0:03:01.1]} 6... d6 {[%clk
0:02:58.9]} 7. Bc4 {[%clk 0:03:01.6]} 7... Nb6 {[%clk 0:02:59.1]} 8. Bb5 {[%clk
0:03:01.4]} 8... dxe5 {[%clk 0:02:53]} 9. Nxe5 {[%clk 0:03:01.9]} 9... Bd7
{[%clk 0:02:52.9]} 10. Nxd7 {[%clk 0:03:02.4]} 10... Qxd7 {[%clk 0:02:51.3]} 11.
Nc3 {[%clk 0:03:03]} 11... e6 {[%clk 0:02:50.7]} 12. O-O {[%clk 0:02:54.3]}
12... Be7 {[%clk 0:02:46]} 13. Qg4 {[%clk 0:02:53.9]} 13... O-O {[%clk
0:02:24.1]} 14. Rd1 {[%clk 0:02:49.8]} 14... Rfd8 {[%clk 0:02:11.5]} 15. Bh6
{[%clk 0:02:45.8]} 15... Bf8 {[%clk 0:02:08.7]} 16. Ne4 {[%clk 0:02:40.5]} 16...
Nd5 {[%clk 0:01:59.5]} 17. Nc5 {[%clk 0:02:30.3]} 17... Qc7 {[%clk 0:01:47.7]}
18. Bg5 {[%clk 0:02:29.2]} 18... Re8 {[%clk 0:01:45.3]} 19. Rac1 {[%clk
0:02:26]} 19... Qb6 {[%clk 0:01:25.1]} 20. Bxc6 {[%clk 0:02:17.4]} 20... Qxc6
{[%clk 0:01:22.7]} 21. h4 {[%clk 0:02:05.9]} 21... Rac8 {[%clk 0:01:18.8]} 22.
h5 {[%clk 0:02:05]} 22... b6 {[%clk 0:01:14.9]} 23. Ne4 {[%clk 0:01:53.2]} 23...
Qa4 {[%clk 0:01:07]} 24. Nf6+ {[%clk 0:01:20.9]} 24... Nxf6 {[%clk 0:01:00.2]}
25. Bxf6 {[%clk 0:01:21.4]} 25... Rxc1 {[%clk 0:00:45.6]} 26. Rxc1 {[%clk
0:01:20.2]} 26... Kh8 {[%clk 0:00:39.9]} 27. Be5 {[%clk 0:01:20.2]} 27... f6
{[%clk 0:00:38.1]} 28. h6 {[%clk 0:00:23.8]} 28... fxe5 {[%clk 0:00:17.3]} 29.
Rc7 {[%clk 0:00:23.5]} 29... g6 {[%clk 0:00:09.6]} 30. Qf3 {[%clk 0:00:23.3]}
30... Be7 {[%clk 0:00:02.9]} 31. Rxe7 {[%clk 0:00:17.9]} 1-0

[Event "*** Titled Tuesday Blitz"]
[Site "Chess.com"]
[Date "2020.04.07"]
[Round "6"]
[White "ahappypawn"]
[Black "Funkmaus"]
[Result "1-0"]
[WhiteElo "2340"]
[BlackElo "2190"]
[TimeControl "180+1"]
[EndTime "14:07:29 PDT"]
[Termination "ahappypawn won by resignation"]

1. d4 {[%clk 0:03:00.9]} 1... c6 {[%clk 0:02:59.9]} 2. c4 {[%clk 0:02:59.2]}
2... d5 {[%clk 0:03:00.5]} 3. Nf3 {[%clk 0:02:58.8]} 3... Nf6 {[%clk 0:03:00.3]}
4. e3 {[%clk 0:02:58.5]} 4... Bg4 {[%clk 0:02:58.1]} 5. h3 {[%clk 0:02:55.8]}
5... Bh5 {[%clk 0:02:55.7]} 6. Nc3 {[%clk 0:02:49.8]} 6... e6 {[%clk 0:02:50.6]}
7. g4 {[%clk 0:02:47.6]} 7... Bg6 {[%clk 0:02:49.1]} 8. Ne5 {[%clk 0:02:48.1]}
8... Nfd7 {[%clk 0:02:26.2]} 9. Nxg6 {[%clk 0:02:41.1]} 9... hxg6 {[%clk
0:02:27.1]} 10. Bd2 {[%clk 0:02:31.7]} 10... Be7 {[%clk 0:02:18.8]} 11. Bg2
{[%clk 0:02:15.2]} 11... dxc4 {[%clk 0:02:09.1]} 12. a4 {[%clk 0:02:12.6]} 12...
a5 {[%clk 0:02:04.5]} 13. Qe2 {[%clk 0:02:07.2]} 13... Nb6 {[%clk 0:01:59.3]}
14. f4 {[%clk 0:01:56.9]} 14... Bh4+ {[%clk 0:01:52.3]} 15. Kf1 {[%clk
0:01:56.8]} 15... Be7 {[%clk 0:01:39.6]} 16. Rd1 {[%clk 0:01:50.1]} 16... Na6
{[%clk 0:01:38.8]} 17. e4 {[%clk 0:01:40.4]} 17... Nb4 {[%clk 0:01:31.5]} 18.
Be3 {[%clk 0:01:37.4]} 18... Qc7 {[%clk 0:00:51.5]} 19. d5 {[%clk 0:01:10.3]}
19... exd5 {[%clk 0:00:42.7]} 20. exd5 {[%clk 0:01:09.6]} 20... O-O {[%clk
0:00:40.1]} 21. d6 {[%clk 0:01:02.9]} 21... Bxd6 {[%clk 0:00:38]} 22. Bxb6
{[%clk 0:01:02.7]} 22... Qb8 {[%clk 0:00:23.9]} 23. f5 {[%clk 0:00:41.8]} 23...
Re8 {[%clk 0:00:19.2]} 24. Qxc4 {[%clk 0:00:24.7]} 24... gxf5 {[%clk 0:00:19.3]}
25. gxf5 {[%clk 0:00:24.2]} 25... Bg3 {[%clk 0:00:18.7]} 26. Bf3 {[%clk
0:00:20]} 26... Qe5 {[%clk 0:00:18.1]} 27. Kg2 {[%clk 0:00:19]} 27... Bh4 {[%clk
0:00:17.5]} 28. Qxh4 {[%clk 0:00:14.6]} 28... c5 {[%clk 0:00:09]} 29. Rhe1
{[%clk 0:00:14.3]} 29... Qf6 {[%clk 0:00:06.1]} 30. Qxf6 {[%clk 0:00:13.6]}
30... gxf6 {[%clk 0:00:07]} 31. Rxe8+ {[%clk 0:00:13.6]} 31... Rxe8 {[%clk
0:00:06.3]} 32. Bxc5 {[%clk 0:00:14.3]} 1-0

[Event "*** Titled Tuesday Blitz"]
[Site "Chess.com"]
[Date "2020.04.07"]
[Round "6"]
[White "Noukii"]
[Black "LiemLe"]
[Result "1-0"]
[WhiteElo "2752"]
[BlackElo "2939"]
[TimeControl "180+1"]
[EndTime "14:07:31 PDT"]
[Termination "Noukii won by resignation"]

1. d4 {[%clk 0:03:00.9]} 1... Nf6 {[%clk 0:02:59.5]} 2. Nf3 {[%clk 0:03:01.2]}
2... e6 {[%clk 0:02:59]} 3. Bg5 {[%clk 0:02:59.8]} 3... h6 {[%clk 0:02:55.4]} 4.
Bxf6 {[%clk 0:02:59.6]} 4... Qxf6 {[%clk 0:02:56.3]} 5. e4 {[%clk 0:03:00.1]}
5... d6 {[%clk 0:02:56.1]} 6. c3 {[%clk 0:03:00.1]} 6... Nd7 {[%clk 0:02:54.2]}
7. a4 {[%clk 0:03:00.5]} 7... e5 {[%clk 0:02:44.3]} 8. dxe5 {[%clk 0:02:54.1]}
8... dxe5 {[%clk 0:02:42.6]} 9. Nbd2 {[%clk 0:02:48.2]} 9... a5 {[%clk
0:02:38.4]} 10. Be2 {[%clk 0:02:41.5]} 10... Bc5 {[%clk 0:02:38.1]} 11. O-O
{[%clk 0:02:42]} 11... O-O {[%clk 0:02:37.9]} 12. Qc2 {[%clk 0:02:40]} 12... Re8
{[%clk 0:02:29.8]} 13. Nb3 {[%clk 0:02:29.8]} 13... Bb6 {[%clk 0:02:25.5]} 14.
Nfd2 {[%clk 0:02:30.2]} 14... Nc5 {[%clk 0:02:20.6]} 15. Nc4 {[%clk 0:02:27.1]}
15... Be6 {[%clk 0:02:15.6]} 16. Nbd2 {[%clk 0:02:19.6]} 16... Nd7 {[%clk
0:02:09.3]} 17. Nxb6 {[%clk 0:02:16]} 17... Nxb6 {[%clk 0:02:10.2]} 18. Rad1
{[%clk 0:02:14]} 18... Red8 {[%clk 0:02:08.7]} 19. Nf3 {[%clk 0:02:00.3]} 19...
Rd7 {[%clk 0:01:56.5]} 20. Rxd7 {[%clk 0:01:54.3]} 20... Bxd7 {[%clk 0:01:57.4]}
21. b3 {[%clk 0:01:54.8]} 21... Bc6 {[%clk 0:01:43.5]} 22. Rd1 {[%clk
0:01:53.9]} 22... Re8 {[%clk 0:01:41.5]} 23. Bb5 {[%clk 0:01:44.6]} 23... Qe6
{[%clk 0:01:32.2]} 24. c4 {[%clk 0:01:30.5]} 24... Nd7 {[%clk 0:01:14.3]} 25.
Bxc6 {[%clk 0:01:26.9]} 25... Qxc6 {[%clk 0:01:15.2]} 26. Rd5 {[%clk 0:01:19.9]}
26... b6 {[%clk 0:01:11]} 27. Qd1 {[%clk 0:01:03]} 27... Nf6 {[%clk 0:01:04.2]}
28. Rxe5 {[%clk 0:01:00.8]} 28... Rxe5 {[%clk 0:00:57.9]} 29. Nxe5 {[%clk
0:01:01.7]} 29... Qxe4 {[%clk 0:00:58.1]} 30. Qd8+ {[%clk 0:01:02]} 30... Kh7
{[%clk 0:00:57.8]} 31. Qd3 {[%clk 0:01:02.7]} 31... Kg8 {[%clk 0:00:49.5]} 32.
Qd8+ {[%clk 0:00:59.7]} 32... Kh7 {[%clk 0:00:49.6]} 33. Qd3 {[%clk 0:01:00.3]}
33... g6 {[%clk 0:00:42.6]} 34. Qxe4 {[%clk 0:00:58.1]} 34... Nxe4 {[%clk
0:00:43.5]} 35. Nd3 {[%clk 0:00:43.5]} 35... Kg7 {[%clk 0:00:32.1]} 36. f3
{[%clk 0:00:43.8]} 36... Nd2 {[%clk 0:00:29.7]} 37. Nc1 {[%clk 0:00:43.6]} 37...
Nb1 {[%clk 0:00:19.7]} 38. Kf2 {[%clk 0:00:42.2]} 38... Kf6 {[%clk 0:00:19.2]}
39. Ke3 {[%clk 0:00:42.5]} 39... Nc3 {[%clk 0:00:17.7]} 40. Kd3 {[%clk
0:00:39.2]} 40... Nd1 {[%clk 0:00:14.2]} 41. Kd2 {[%clk 0:00:38.6]} 41... Nf2
{[%clk 0:00:14.1]} 42. Ke2 {[%clk 0:00:39.1]} 42... Nh1 {[%clk 0:00:13.4]} 43.
Nd3 {[%clk 0:00:39.5]} 43... Kf5 {[%clk 0:00:10.7]} 44. Kf1 {[%clk 0:00:38.6]}
44... g5 {[%clk 0:00:09.8]} 45. Kg1 {[%clk 0:00:38.8]} 45... g4 {[%clk
0:00:10.7]} 46. Kxh1 {[%clk 0:00:39]} 46... gxf3 {[%clk 0:00:11.6]} 47. gxf3
{[%clk 0:00:39]} 1-0

[Event "*** Titled Tuesday Blitz"]
[Site "Chess.com"]
[Date "2020.04.07"]
[Round "6"]
[White "AlexOstrovskiy"]
[Black "vugarrasulov"]
[Result "0-1"]
[WhiteElo "2608"]
[BlackElo "2768"]
[TimeControl "180+1"]
[EndTime "14:07:33 PDT"]
[Termination "vugarrasulov won on time"]

1. d4 {[%clk 0:03:00.9]} 1... Nf6 {[%clk 0:02:59.5]} 2. Bg5 {[%clk 0:03:00.5]}
2... c5 {[%clk 0:02:58.8]} 3. d5 {[%clk 0:03:00.2]} 3... Ne4 {[%clk 0:02:57]} 4.
h4 {[%clk 0:03:00.3]} 4... Qb6 {[%clk 0:02:55.5]} 5. Nd2 {[%clk 0:02:59.4]} 5...
Nxd2 {[%clk 0:02:51.2]} 6. Bxd2 {[%clk 0:02:57.9]} 6... d6 {[%clk 0:02:50.8]} 7.
e4 {[%clk 0:02:55.6]} 7... Nd7 {[%clk 0:02:50]} 8. Bc3 {[%clk 0:02:50.2]} 8...
Nf6 {[%clk 0:02:49.3]} 9. f3 {[%clk 0:02:50.4]} 9... h5 {[%clk 0:02:44]} 10. Ne2
{[%clk 0:02:46]} 10... g6 {[%clk 0:02:43.8]} 11. a4 {[%clk 0:02:38.9]} 11... Bh6
{[%clk 0:02:39.8]} 12. a5 {[%clk 0:02:32.3]} 12... Qc7 {[%clk 0:02:40]} 13. Bd2
{[%clk 0:02:24.8]} 13... Bg7 {[%clk 0:02:35.2]} 14. Nc3 {[%clk 0:02:24.8]} 14...
O-O {[%clk 0:02:35.3]} 15. Bc4 {[%clk 0:02:09.1]} 15... Bd7 {[%clk 0:02:33.8]}
16. O-O {[%clk 0:02:07.4]} 16... Nh7 {[%clk 0:02:28.2]} 17. Qe1 {[%clk 0:02:00]}
17... Rab8 {[%clk 0:02:14.2]} 18. Kh1 {[%clk 0:01:51.1]} 18... b5 {[%clk
0:02:13.5]} 19. axb6 {[%clk 0:01:51]} 19... axb6 {[%clk 0:02:12.2]} 20. Qe2
{[%clk 0:01:33.8]} 20... b5 {[%clk 0:02:07.1]} 21. Nxb5 {[%clk 0:01:27.8]} 21...
Bxb5 {[%clk 0:02:05.7]} 22. Bxb5 {[%clk 0:01:28.7]} 22... Bxb2 {[%clk
0:02:05.8]} 23. Ra6 {[%clk 0:01:26.5]} 23... Bf6 {[%clk 0:02:01.6]} 24. g3
{[%clk 0:01:12.9]} 24... Ra8 {[%clk 0:01:59.6]} 25. Kg2 {[%clk 0:00:55.5]} 25...
Rfb8 {[%clk 0:01:49.4]} 26. Rc6 {[%clk 0:00:47.1]} 26... Qb7 {[%clk 0:01:45]}
27. Bc4 {[%clk 0:00:40.4]} 27... Qb2 {[%clk 0:01:40.6]} 28. Bc1 {[%clk
0:00:36.8]} 28... Qb4 {[%clk 0:01:34.4]} 29. f4 {[%clk 0:00:28.9]} 29... Ra4
{[%clk 0:01:24.6]} 30. Bd3 {[%clk 0:00:28]} 30... Ra2 {[%clk 0:01:03.3]} 31. e5
{[%clk 0:00:26.1]} 31... Bg7 {[%clk 0:01:03.9]} 32. exd6 {[%clk 0:00:19.5]}
32... exd6 {[%clk 0:01:04.8]} 33. f5 {[%clk 0:00:17.3]} 33... gxf5 {[%clk
0:00:59.3]} 34. Rxf5 {[%clk 0:00:17.4]} 34... Qg4 {[%clk 0:00:51.4]} 35. Qxg4
{[%clk 0:00:17.4]} 35... hxg4 {[%clk 0:00:52.3]} 36. Bf4 {[%clk 0:00:17.7]}
36... Ra1 {[%clk 0:00:46.8]} 37. Bxd6 {[%clk 0:00:12.9]} 37... Rbb1 {[%clk
0:00:39.9]} 38. Rc8+ {[%clk 0:00:12.2]} 38... Nf8 {[%clk 0:00:38.8]} 39. Bxf8
{[%clk 0:00:07.6]} 39... Rg1+ {[%clk 0:00:38.9]} 40. Kf2 {[%clk 0:00:04.6]}
40... Bd4+ {[%clk 0:00:39.3]} 41. Ke2 {[%clk 0:00:02.8]} 41... Rge1+ {[%clk
0:00:38.2]} 0-1

[Event "*** Titled Tuesday Blitz"]
[Site "Chess.com"]
[Date "2020.04.07"]
[Round "6"]
[White "czasnaszachy"]
[Black "BobSacIt"]
[Result "0-1"]
[WhiteElo "2319"]
[BlackElo "2195"]
[TimeControl "180+1"]
[EndTime "14:07:33 PDT"]
[Termination "BobSacIt won on time"]

1. d4 {[%clk 0:03:00.9]} 1... Nf6 {[%clk 0:02:59.5]} 2. c4 {[%clk 0:02:59.4]}
2... d6 {[%clk 0:02:59.3]} 3. Nc3 {[%clk 0:02:58.5]} 3... g6 {[%clk 0:02:59.8]}
4. e4 {[%clk 0:02:57.8]} 4... Bg7 {[%clk 0:03:00.1]} 5. f3 {[%clk 0:02:54.5]}
5... O-O {[%clk 0:03:00]} 6. Bg5 {[%clk 0:02:54.9]} 6... c5 {[%clk 0:02:50.7]}
7. d5 {[%clk 0:02:54.4]} 7... h6 {[%clk 0:02:46.7]} 8. Be3 {[%clk 0:02:53.5]}
8... Nbd7 {[%clk 0:02:44.8]} 9. Qd2 {[%clk 0:02:52.5]} 9... Kh7 {[%clk
0:02:45.2]} 10. Nh3 {[%clk 0:02:52.4]} 10... a6 {[%clk 0:02:43.4]} 11. a4 {[%clk
0:02:49.6]} 11... b6 {[%clk 0:02:43.2]} 12. Nf2 {[%clk 0:02:48.9]} 12... Ne5
{[%clk 0:02:37.5]} 13. Be2 {[%clk 0:02:48.1]} 13... Bd7 {[%clk 0:02:33.7]} 14.
O-O {[%clk 0:02:43.4]} 14... g5 {[%clk 0:02:30.7]} 15. Rfd1 {[%clk 0:02:32.2]}
15... Ng6 {[%clk 0:02:20]} 16. Bf1 {[%clk 0:02:26.9]} 16... Nh5 {[%clk
0:02:17.2]} 17. g3 {[%clk 0:02:14.8]} 17... Qc8 {[%clk 0:02:16.8]} 18. Kh1
{[%clk 0:02:08.3]} 18... Be5 {[%clk 0:01:58]} 19. Ne2 {[%clk 0:01:50.9]} 19...
Bg7 {[%clk 0:01:11.6]} 20. Bg2 {[%clk 0:01:35.1]} 20... Rh8 {[%clk 0:01:11]} 21.
Rg1 {[%clk 0:01:14.6]} 21... Ne5 {[%clk 0:00:59.6]} 22. Qc2 {[%clk 0:00:44.8]}
22... Kg8 {[%clk 0:00:36.3]} 23. h3 {[%clk 0:00:32.7]} 23... f5 {[%clk
0:00:30.5]} 24. exf5 {[%clk 0:00:16.4]} 24... Bxf5 {[%clk 0:00:30.4]} 25. Qb3
{[%clk 0:00:11.8]} 25... Nf6 {[%clk 0:00:22.8]} 26. g4 {[%clk 0:00:06.3]} 26...
Bg6 {[%clk 0:00:21.1]} 27. f4 {[%clk 0:00:06.2]} 27... Nexg4 {[%clk 0:00:19.6]}
28. hxg4 {[%clk 0:00:04.9]} 28... Nxg4 {[%clk 0:00:19.9]} 29. Nxg4 {[%clk
0:00:04.6]} 29... Qxg4 {[%clk 0:00:20.7]} 30. Bf2 {[%clk 0:00:01.9]} 30... gxf4
{[%clk 0:00:18.2]} 31. Qf3 {[%clk 0:00:01.3]} 31... h5 {[%clk 0:00:16.7]} 32.
Bh3 {[%clk 0:00:01.3]} 32... Qxf3+ {[%clk 0:00:14.9]} 0-1